bitfinex-derivatives/quotes_BTCF0:USTF0_20251115
["timestamp","ask_amount","ask_price","bid_price","bid_amount"]
[1763228048546,0.11904031,95963.0,95962.0,0.09078]
[1763228052449,0.02580031,95963.0,95962.0,0.09078]
[1763228054039,0.08420873,95980.0,95979.0,0.09481]
[1763228054244,0.04693,95980.0,95979.0,0.09481]
[1763228055149,0.03727873,95982.0,95980.0,0.09700803]
[1763228055354,0.03727873,95985.0,95984.0,0.1239]
[1763228055544,0.03743501,95989.0,95984.0,0.02909]
[1763228055746,0.00015628,95989.0,95988.0,0.09481]
[1763228064653,0.45679,96004.0,96003.0,0.09481]
[1763228065850,0.45779,96004.0,96003.0,0.09481]
[1763228066050,0.12125064,96004.0,96003.0,0.09481]
[1763228066742,0.12225064,96004.0,96003.0,0.09481]
[1763228069159,0.12125064,96004.0,96003.0,0.09481]
[1763228069549,0.09022,95995.0,95994.0,0.00015628]
[1763228069752,0.09022,95964.0,95963.0,0.11367]
[1763228070350,0.10021999,95970.0,95969.0,0.08758]
[1763228070557,0.3608,95979.0,95978.0,0.08758]
[1763228070863,0.3849879,95979.0,95978.0,0.08758]
[1763228071259,0.0241879,95979.0,95978.0,0.08758]
[1763228071446,0.1144079,95979.0,95978.0,0.08758]
[1763228071652,0.4752079,95979.0,95978.0,0.08758]
[1763228071854,0.4752079,95979.0,95978.0,0.04489]
[1763228072150,0.09022,95971.0,95970.0,0.08758]
[1763228072355,0.11442157,95971.0,95970.0,0.08977803]
[1763228073555,0.11442157,95971.0,95970.0,0.11586803]
[1763228073858,0.45102,95987.0,95986.0,0.08758]
[1763228074062,0.42999104,95987.0,95986.0,0.08758]
[1763228074458,0.38501104,95987.0,95986.0,0.08758]
[1763228075060,0.43099104,95987.0,95986.0,0.08758]
[1763228075763,0.47623104,95987.0,95986.0,0.08758]
[1763228075957,0.47723104,95987.0,95986.0,0.08758]
[1763228079753,0.09022,95978.0,95977.0,0.11367]
[1763228079954,0.09022,95970.0,95969.0,0.04284628]
[1763228080155,0.09022,95970.0,95969.0,0.08773628]
[1763228082359,0.11434862,95970.0,95969.0,0.08773628]
[1763228083560,0.02412862,95970.0,95969.0,0.08773628]
[1763228083767,0.04498,95980.0,95979.0,0.08758]
[1763228083962,0.06911088,95980.0,95979.0,0.08758]
[1763228086271,0.11435088,95980.0,95979.0,0.08758]
[1763228087060,0.06911088,95980.0,95979.0,0.08758]
[1763228087666,0.11435088,95980.0,95979.0,0.08758]
[1763228098276,0.02413088,95980.0,95979.0,0.08758]
[1763228099177,0.0209968,95980.0,95979.0,0.08758]
[1763228101769,0.1019368,95980.0,95979.0,0.08758]
[1763228102168,0.0630868,95980.0,95979.0,0.08758]
[1763228102672,0.1019368,95980.0,95979.0,0.08758]
[1763228103072,0.0209968,95980.0,95979.0,0.08758]
[1763228103267,0.3608,95991.0,95979.0,0.08758]
[1763228103472,0.03727873,95998.0,95987.0,0.08012]
[1763228104070,0.08094,95999.0,95998.0,0.08012]
[1763228104971,0.08094,95992.0,95991.0,0.08012]
[1763228106979,0.08094,95992.0,95991.0,0.03913]
[1763228107775,0.10532,95991.0,95990.0,0.00219803]
[1763228107984,0.08094,95983.0,95982.0,0.08027628]
[1763228108276,0.08094,95983.0,95982.0,0.03928628]
[1763228108673,0.08094,95983.0,95982.0,0.08027628]
[1763228109482,0.44174,95983.0,95982.0,0.08027628]
[1763228110583,0.44174,95983.0,95982.0,0.03928628]
[1763228113777,0.44174,95983.0,95982.0,0.08027628]
[1763228115373,0.46727191,95983.0,95982.0,0.08027628]
[1763228117483,0.10647191,95983.0,95982.0,0.10321628]
[1763228117978,0.10647191,95983.0,95982.0,0.08027628]
[1763228119287,0.10647191,95983.0,95982.0,0.10321628]
[1763228120585,0.02553191,95983.0,95982.0,0.10321628]
[1763228120982,0.02553191,95983.0,95982.0,0.46401628]
[1763228121691,0.08754999,95990.0,95989.0,0.07612]
[1763228121886,0.10171509,95990.0,95989.0,0.07612]
[1763228123991,0.02416509,95990.0,95989.0,0.07612]
[1763228124594,0.07770628,96001.0,96000.0,0.09709]
[1763228124787,0.07770628,96001.0,96000.0,0.09928803]
[1763228125796,0.07770628,96001.0,96000.0,0.00219803]
[1763228125991,0.03866,95983.0,95982.0,0.46001628]
[1763228126593,0.03866,95990.0,95989.0,0.07612]
[1763228126794,0.07755,95990.0,95989.0,0.07612]
[1763228128187,0.03866,95990.0,95989.0,0.07612]
[1763228129193,0.03353999,96000.0,95999.0,0.07169]
[1763228129194,0.08421999,96000.0,95999.0,0.07169]
[1763228129694,0.07422,96000.0,95999.0,0.07169]
[1763228130501,0.07522,96000.0,95999.0,0.07169]
[1763228131193,0.001,96000.0,95999.0,0.07169]
[1763228131396,0.001,96000.0,95999.0,0.43249]
[1763228131596,0.0368,96000.0,95999.0,0.43249]
[1763228131898,0.002,96000.0,95999.0,0.43249]
[1763228132101,0.001,96000.0,95999.0,0.43249]
[1763228132392,0.002,96000.0,95999.0,0.43249]
[1763228132596,0.001911,96000.0,95999.0,0.43249]
[1763228133398,0.0002604,96006.0,96005.0,0.07169]
[1763228133593,0.43502,96032.0,96031.0,0.07169]
[1763228134898,0.07422,96031.0,96030.0,0.00219803]
[1763228135995,0.07622,96031.0,96030.0,0.03843803]
[1763228136392,0.07422,96023.0,96022.0,0.0001562]
[1763228136594,0.0979607,96023.0,96022.0,0.0001562]
[1763228137097,0.0979607,96023.0,95995.0,0.3608]
[1763228137098,0.07422,96006.0,96005.0,0.45381]
[1763228138099,0.07422,96006.0,96005.0,0.43249]
[1763228138398,0.07522,96006.0,96005.0,0.43249]
[1763228139298,0.07622,96006.0,96005.0,0.43249]
[1763228141405,0.07422,96001.0,96000.0,0.07388803]
[1763228142505,0.07522,96001.0,96000.0,0.00219803]
[1763228144409,0.07522,96001.0,95996.0,0.0001562]
[1763228144410,0.07422,95997.0,95996.0,0.0001562]
[1763228145309,0.09795898,95997.0,95996.0,0.0001562]
[1763228147106,0.09795898,95997.0,95996.0,0.0363962]
[1763228147306,0.09795898,95997.0,95996.0,0.0718462]
[1763228147608,0.09795898,95997.0,95996.0,0.0363962]
[1763228148425,0.09795898,95997.0,95996.0,0.0718462]
[1763228148713,0.09795898,95997.0,95996.0,0.0363962]
[1763228148908,0.09795898,95997.0,95996.0,0.0001562]
[1763228150021,0.09795898,95997.0,95996.0,0.0363962]
[1763228150222,0.09795898,95997.0,95996.0,0.0718462]
[1763228151322,0.09795898,95997.0,95996.0,0.0738462]
[1763228151820,0.09795898,95997.0,95996.0,0.0728462]
[1763228152024,0.09795898,95997.0,95996.0,0.0718462]
[1763228152415,0.09795898,95997.0,95996.0,0.0363962]
[1763228154126,0.09795898,95997.0,95996.0,0.0718462]
[1763228154316,0.09795898,95997.0,95996.0,0.0363962]
[1763228154520,0.09795898,95997.0,95996.0,0.0373962]
[1763228155024,0.09795898,95997.0,95996.0,0.0001562]
[1763228156721,0.45875898,95997.0,95996.0,0.0001562]
[1763228158324,0.45875898,95997.0,95996.0,0.0363962]
[1763228158524,0.45875898,95997.0,95996.0,0.0001562]
[1763228159321,0.45781996,95997.0,95996.0,0.0001562]
[1763228164432,0.45781996,95997.0,95996.0,0.0346762]
[1763228164823,0.45781996,95997.0,95996.0,0.0001562]
[1763228166826,0.02279996,95997.0,95996.0,0.0675662]
[1763228167031,0.05772996,95997.0,95996.0,0.0675662]
[1763228167235,0.09313996,95997.0,95996.0,0.0675662]
[1763228170235,0.09313996,95997.0,95996.0,0.0001562]
[1763228170527,0.09313996,95997.0,95996.0,0.0675662]
[1763228170725,0.02279996,95997.0,95996.0,0.0675662]
[1763228171429,0.0001562,96015.0,96014.0,0.06741]
[1763228171933,0.06191,96035.0,96034.0,0.0659]
[1763228173130,0.42271,96039.0,96038.0,0.0659]
[1763228173338,0.0306962,96044.0,96043.0,0.0659]
[1763228173630,0.0620662,96044.0,96043.0,0.0659]
[1763228173830,0.0306962,96044.0,96043.0,0.0659]
[1763228174535,0.0620662,96044.0,96043.0,0.0659]
[1763228175334,0.0001562,96044.0,96043.0,0.0659]
[1763228175633,0.0620662,96044.0,96043.0,0.0659]
[1763228175939,0.0306962,96044.0,96043.0,0.0659]
[1763228176832,0.0001562,96044.0,96043.0,0.0659]
[1763228177023,0.3608,96068.0,96067.0,0.0659]
[1763228177024,0.06191,96068.0,96067.0,0.0659]
[1763228177626,0.03085782,96088.0,96075.0,0.0659]
[1763228177838,0.02021,96088.0,96075.0,0.4267]
[1763228178033,0.02021,96104.0,96085.0,0.0659]
[1763228178034,0.06217018,96086.0,96085.0,0.0659]
[1763228178437,0.03080018,96086.0,96085.0,0.0659]
[1763228178637,0.00026018,96086.0,96085.0,0.0659]
[1763228179130,0.06217018,96086.0,96085.0,0.0659]
[1763228181729,0.00026018,96086.0,96085.0,0.0659]
[1763228182334,0.00015611,96095.0,96094.0,0.0659]
[1763228182531,0.00015611,96095.0,96094.0,0.4267]
[1763228183928,0.00115611,96095.0,96094.0,0.4267]
[1763228184328,0.38101,96112.0,96094.0,0.4267]
[1763228184530,0.02021,96120.0,96115.0,0.0659]
[1763228184739,0.03554,96116.0,96115.0,0.0659]
[1763228185038,0.06691,96116.0,96115.0,0.0659]
[1763228186133,0.06191,96111.0,96110.0,0.03477803]
[1763228186432,0.06191,96111.0,96110.0,0.06809803]
[1763228188139,0.06291,96111.0,96110.0,0.06809803]
[1763228188339,0.06391,96111.0,96110.0,0.06809803]
[1763228188933,0.06391,96111.0,96110.0,0.03477803]
[1763228189341,0.06391,96111.0,96110.0,0.00219803]
[1763228190038,0.06214,96089.0,96088.0,0.3608]
[1763228190237,0.06214,96073.0,96072.0,0.42379]
[1763228190433,0.06214,96073.0,96072.0,0.06299]
[1763228190853,0.44077,96080.0,96079.0,0.06299]
[1763228191728,0.44077,96080.0,96079.0,0.03105]
[1763228193140,0.06214,96071.0,96070.0,0.06314611]
[1763228193343,0.06214,96071.0,96070.0,0.06534414]
[1763228194436,0.06214,96071.0,96070.0,0.00335414]
[1763228194955,0.06214,96071.0,96070.0,0.00235414]
[1763228197545,0.06214,96071.0,96070.0,0.03340414]
[1763228200337,0.42294,96080.0,96079.0,0.06299]
[1763228200538,0.01783,96088.0,96087.0,0.06299]
[1763228200539,0.06214,96088.0,96087.0,0.06299]
[1763228200740,0.03101,96088.0,96087.0,0.06299]
[1763228200942,0.06214,96088.0,96087.0,0.06299]
[1763228201635,0.06314,96088.0,96087.0,0.06299]
[1763228201835,0.06214,96082.0,96081.0,0.39185]
[1763228202235,0.06214,96082.0,96081.0,0.42379]
[1763228202839,0.06214,96082.0,96081.0,0.06299]
[1763228203944,0.06314,96082.0,96081.0,0.06299]
[1763228204145,0.06414,96082.0,96081.0,0.06299]
[1763228206152,0.06414,96082.0,96081.0,0.42379]
[1763228207841,0.002,96082.0,96081.0,0.42379]
[1763228217659,0.00015611,96089.0,96088.0,0.08181]
[1763228217859,0.3608,96121.0,96115.0,0.06299]
[1763228217860,0.06714,96116.0,96115.0,0.06299]
[1763228218068,0.0896456,96116.0,96115.0,0.06299]
[1763228218860,0.0896456,96116.0,96110.0,0.00219803]
[1763228218861,0.05872,96111.0,96110.0,0.02969803]
[1763228219070,0.0812256,96111.0,96110.0,0.02969803]
[1763228219664,0.0812256,96111.0,96110.0,0.05829803]
[1763228220364,0.0832256,96111.0,96110.0,0.05829803]
[1763228220562,0.0852256,96111.0,96110.0,0.05829803]
[1763228221562,0.0852256,96111.0,96106.0,0.00015611]
[1763228221767,0.07495,96088.0,96087.0,0.3608]
[1763228221972,0.09744959,96088.0,96087.0,0.3883]
[1763228222366,0.09744959,96088.0,96087.0,0.4169]
[1763228222569,0.09744959,96088.0,96075.0,0.3883]
[1763228222570,0.05872,96076.0,96075.0,0.3883]
[1763228222869,0.05872,96076.0,96075.0,0.4169]
[1763228223076,0.07495,96084.0,96083.0,0.0561]
[1763228223276,0.09744904,96084.0,96083.0,0.0561]
[1763228223468,0.05872,96081.0,96080.0,0.00219803]
[1763228223670,0.08121904,96081.0,96080.0,0.00219803]
[1763228224874,0.08121904,96081.0,96080.0,0.02969803]
[1763228225377,0.08121904,96081.0,96080.0,0.05829803]
[1763228227476,0.08121904,96081.0,96080.0,0.00219803]
[1763228228279,0.05872,96081.0,96080.0,0.00219803]
[1763228228478,0.08122415,96081.0,96080.0,0.02969803]
[1763228229374,0.02250415,96081.0,96080.0,0.07450803]
[1763228230373,0.00015611,96085.0,96080.0,0.07450803]
[1763228230576,0.00015611,96085.0,96084.0,0.0561]
[1763228231779,0.0693,96104.0,96103.0,0.05186]
[1763228233181,0.0703,96104.0,96103.0,0.05186]
[1763228233382,0.0713,96104.0,96103.0,0.05186]
[1763228234784,0.05507,96104.0,96103.0,0.05186]
[1763228234986,0.07042,96104.0,96103.0,0.05186]
[1763228236078,0.05507,96104.0,96103.0,0.05186]
[1763228241389,0.02809,96104.0,96103.0,0.05572]
[1763228241585,0.002,96104.0,96103.0,0.05572]
[1763228241985,0.001,96104.0,96103.0,0.05572]
[1763228242185,0.05307,96113.0,96112.0,0.05186]
[1763228244585,0.05407,96113.0,96112.0,0.05186]
[1763228245099,0.001,96113.0,96112.0,0.05186]
[1763228245687,0.002,96113.0,96112.0,0.05186]
[1763228250298,0.00098797,96116.0,96115.0,0.04911]
[1763228251095,0.02572797,96116.0,96115.0,0.04911]
[1763228252092,0.02772797,96116.0,96115.0,0.04911]
[1763228252290,0.05257797,96116.0,96115.0,0.04911]
[1763228253498,0.05257797,96116.0,96110.0,0.00219803]
[1763228253799,0.04959,96111.0,96110.0,0.00219803]
[1763228254398,0.04959,96111.0,96099.0,0.3608]
[1763228254399,0.04959,96100.0,96099.0,0.3608]
[1763228254601,0.04959,96095.0,96088.0,0.39819498]
[1763228254802,0.04959,96095.0,96090.0,0.00219803]
[1763228255697,0.04959,96091.0,96090.0,0.00219803]
[1763228255894,0.04959,96081.0,96080.0,0.3608]
[1763228256205,0.04959,96081.0,96080.0,0.36299803]
[1763228258300,0.02458095,96081.0,96080.0,0.36299803]
[1763228258506,0.04932095,96081.0,96080.0,0.38757803]
[1763228258707,0.04932095,96081.0,96080.0,0.41210803]
[1763228260107,0.00015611,96090.0,96080.0,0.41210803]
[1763228260307,0.04974611,96090.0,96089.0,0.06051]
[1763228260608,0.04974611,96090.0,96089.0,0.04911]
[1763228261912,0.04959,96081.0,96080.0,0.52429963]
[1763228262209,0.04974611,96090.0,96089.0,0.04911]
[1763228264812,0.04959,96081.0,96080.0,0.40991]
[1763228265017,0.04959,96081.0,96080.0,0.41210803]
[1763228266113,0.04974611,96090.0,96089.0,0.04911]
[1763228266716,0.04974611,96090.0,96089.0,0.42536]
[1763228266914,0.00015611,96090.0,96089.0,0.42536]
[1763228269112,0.06475,96110.0,96109.0,0.02458]
[1763228269609,0.04959,96101.0,96100.0,0.04911]
[1763228269815,0.04959,96101.0,96100.0,0.05130803]
[1763228270618,0.04959,96101.0,96100.0,0.02677803]
[1763228271416,0.05059,96101.0,96100.0,0.02677803]
[1763228271917,0.05159,96101.0,96100.0,0.02677803]
[1763228272713,0.05159,96101.0,96100.0,0.00219803]
[1763228273211,0.05159,96101.0,96100.0,0.05130803]
[1763228275917,0.002,96101.0,96100.0,0.05130803]
[1763228278819,0.00010222,96110.0,96109.0,0.04896]
[1763228279619,0.00010222,96110.0,96109.0,0.40976]
[1763228279807,0.00110222,96110.0,96109.0,0.40976]
[1763228280620,0.00210222,96110.0,96109.0,0.40976]
[1763228281113,0.3608,96123.0,96115.0,0.04895]
[1763228281614,0.38528,96123.0,96122.0,0.04895]
[1763228281811,0.02474008,96126.0,96125.0,0.04895]
[1763228282425,0.04817008,96126.0,96125.0,0.04895]
[1763228282820,0.00026008,96126.0,96125.0,0.04895]
[1763228283025,0.00126008,96126.0,96125.0,0.04895]
[1763228283816,0.3608,96144.0,96125.0,0.08630731]
[1763228284023,0.3608,96144.0,96143.0,0.04895]
[1763228284024,0.04791,96144.0,96143.0,0.04895]
[1763228284320,0.02448,96144.0,96143.0,0.04895]
[1763228284717,0.40871,96147.0,96146.0,0.04895]
[1763228285319,0.04791,96141.0,96140.0,0.20871166]
[1763228285520,0.04791,96141.0,96140.0,0.05114803]
[1763228285734,0.3658,96156.0,96140.0,0.05114803]
[1763228285735,0.05291,96156.0,96155.0,0.04895]
[1763228285923,0.04791,96138.0,96137.0,0.00015602]
[1763228286220,0.06216,96104.0,96102.0,0.03735731]
[1763228286421,0.06216,96104.0,96090.0,0.02530267]
[1763228286422,0.04791,96091.0,96090.0,0.02530267]
[1763228286624,0.40871,96103.0,96102.0,0.04895]
[1763228287123,0.40871,96113.0,96112.0,0.04895]
[1763228288024,0.04791,96111.0,96110.0,0.00073267]
[1763228288218,0.04791,96104.0,96103.0,0.18433166]
[1763228288420,0.04691,96104.0,96103.0,0.02457]
[1763228288820,0.04791,96094.0,96085.0,0.0001073]
[1763228289019,0.04791,96050.0,96049.0,0.04895]
[1763228289332,0.04791,96063.0,96062.0,0.02438]
[1763228289622,0.3608,96065.0,96064.0,0.04895]
[1763228289833,0.3598,96065.0,96064.0,0.04895]
[1763228290033,9.907e-05,96065.0,96064.0,0.04895]
[1763228290322,0.04800907,96065.0,96064.0,0.04895]
[1763228290522,0.04700907,96065.0,96064.0,0.04895]
[1763228290920,0.04700907,96065.0,96064.0,0.04995]
[1763228291330,0.04700907,96065.0,96064.0,0.05095]
[1763228291719,0.01429611,96074.0,96064.0,0.05095]
[1763228291720,0.00015611,96074.0,96073.0,0.04519]
[1763228291920,0.04513611,96074.0,96073.0,0.04519]
[1763228292527,0.00015611,96074.0,96073.0,0.40599]
[1763228294524,0.03725302,96101.0,96073.0,0.40599]
[1763228294525,0.3608,96092.0,96091.0,0.04519]
[1763228294925,0.38321,96092.0,96091.0,0.04519]
[1763228295128,0.40578,96092.0,96091.0,0.04519]
[1763228295728,0.04498,96092.0,96091.0,0.04519]
[1763228295928,0.04513593,96101.0,96100.0,0.02309]
[1763228296124,0.04513593,96101.0,96100.0,0.02382267]
[1763228296933,0.04513593,96101.0,96100.0,0.04592267]
[1763228297433,0.04613593,96101.0,96100.0,0.04592267]
[1763228297825,0.04713593,96101.0,96100.0,0.04592267]
[1763228298023,0.02456593,96101.0,96100.0,0.04592267]
[1763228299332,0.00215593,96101.0,96100.0,0.04592267]
[1763228299535,0.00015593,96101.0,96100.0,0.04692267]
[1763228299728,0.00015593,96101.0,96100.0,0.04792267]
[1763228299928,0.04513593,96101.0,96100.0,0.04792267]
[1763228300138,0.04513593,96101.0,96100.0,0.04692267]
[1763228300327,0.04513593,96101.0,96100.0,0.00073267]
[1763228300537,0.01522803,96100.0,96080.0,0.01405]
[1763228300734,0.04498,96091.0,96090.0,0.05997267]
[1763228300931,0.04513593,96101.0,96100.0,0.04519]
[1763228301135,0.00219803,96100.0,96090.0,0.17454433]
[1763228301336,0.01522803,96100.0,96090.0,0.01478267]
[1763228303339,0.01522803,96100.0,96090.0,0.17454433]
[1763228304727,0.06020803,96100.0,96099.0,0.02309]
[1763228306433,0.04498,96091.0,96090.0,0.21900166]
[1763228306631,0.04498,96091.0,96090.0,0.05997267]
[1763228306937,0.03544,96100.0,96099.0,0.02309]
[1763228307133,0.04717803,96100.0,96099.0,0.04519]
[1763228307335,0.00219803,96100.0,96099.0,0.04519]
[1763228308539,0.02454803,96100.0,96099.0,0.04519]
[1763228309240,0.00219803,96100.0,96099.0,0.04519]
[1763228311338,0.02454803,96100.0,96099.0,0.04519]
[1763228311840,0.00219803,96100.0,96099.0,0.04519]
[1763228313134,0.00015593,96101.0,96100.0,0.04561267]
[1763228315936,0.04522593,96101.0,96100.0,0.04561267]
[1763228316244,0.00015593,96101.0,96100.0,0.04561267]
[1763228321348,0.04522593,96101.0,96100.0,0.04561267]
[1763228321545,0.04522593,96101.0,96100.0,0.00073267]
[1763228321754,0.04522593,96101.0,96088.0,0.3608]
[1763228321755,0.00219803,96100.0,96088.0,0.01389]
[1763228321948,0.04726803,96100.0,96099.0,0.04488]
[1763228322140,0.02235,96089.0,96088.0,0.05877]
[1763228322342,0.04726803,96100.0,96099.0,0.04488]
[1763228322539,0.04726803,96100.0,96088.0,0.01389]
[1763228322540,0.02235,96089.0,96088.0,0.05877]
[1763228322750,0.04507,96100.0,96099.0,0.04488]
[1763228323050,0.04507,96083.0,96082.0,0.00015611]
[1763228323245,0.04507,96083.0,96082.0,0.02288611]
[1763228323547,0.04507,96083.0,96082.0,0.00015611]
[1763228323748,0.04507,96083.0,96082.0,0.04503611]
[1763228324147,0.04507,96083.0,96082.0,0.00015611]
[1763228324646,0.40587,96083.0,96082.0,0.04503611]
[1763228324947,0.40587,96091.0,96090.0,0.04488]
[1763228325160,0.40587,96091.0,96090.0,0.04561267]
[1763228326448,0.40587,96091.0,96090.0,0.05572267]
[1763228326642,0.3608,96091.0,96090.0,0.05572267]
[1763228326950,0.40587,96091.0,96090.0,0.05572267]
[1763228327148,0.40587,96091.0,96090.0,0.04561267]
[1763228331550,0.42835776,96091.0,96090.0,0.04561267]
[1763228333253,0.42835776,96091.0,96090.0,0.00073267]
[1763228333455,0.42835776,96091.0,96090.0,0.04561267]
[1763228334657,0.42835776,96091.0,96090.0,0.00073267]
[1763228335653,0.42835776,96091.0,96090.0,0.04561267]
[1763228337656,0.42835776,96091.0,96090.0,0.00073267]
[1763228339459,0.42835776,96091.0,96090.0,0.04501267]
[1763228340760,0.40563776,96091.0,96090.0,0.04501267]
[1763228341060,0.42809776,96091.0,96090.0,0.04501267]
[1763228343256,0.38328776,96091.0,96090.0,0.04501267]
[1763228343455,0.36095593,96101.0,96090.0,0.04501267]
[1763228343665,0.36095593,96101.0,96100.0,0.04428]
[1763228343666,0.40500593,96101.0,96100.0,0.04428]
[1763228343964,0.42747917,96101.0,96100.0,0.04501267]
[1763228344755,0.02262917,96101.0,96100.0,0.04501267]
[1763228344959,0.00015593,96101.0,96100.0,0.04501267]
[1763228345864,0.05726,96120.0,96119.0,0.04428]
[1763228346064,0.06872583,96120.0,96119.0,0.04428]
[1763228346260,0.07803583,96120.0,96119.0,0.04428]
[1763228346859,0.04405,96111.0,96110.0,0.15875054]
[1763228347062,0.38239,96121.0,96120.0,0.05454]
[1763228347269,0.38327341,96121.0,96120.0,0.05527267]
[1763228347566,0.01373,96136.0,96120.0,0.05527267]
[1763228347567,0.04431008,96126.0,96125.0,0.04428]
[1763228348156,0.00026008,96126.0,96125.0,0.04428]
[1763228348857,0.00126008,96126.0,96125.0,0.04428]
[1763228349658,0.00226008,96126.0,96125.0,0.04428]
[1763228354663,0.40546,96147.0,96146.0,0.04453]
[1763228355865,0.40646,96147.0,96146.0,0.04453]
[1763228357571,0.42984409,96147.0,96146.0,0.04453]
[1763228359276,0.04466,96138.0,96137.0,0.51980044]
[1763228359470,0.04466,96138.0,96137.0,0.40548601]
[1763228360569,0.04566,96138.0,96137.0,0.40548601]
[1763228360771,0.04666,96138.0,96137.0,0.40548601]
[1763228360961,0.002,96138.0,96137.0,0.40548601]
[1763228365563,0.04666,96138.0,96137.0,0.40548601]
[1763228375774,0.002,96138.0,96137.0,0.40548601]
[1763228377282,0.04776,96138.0,96137.0,0.40548601]
[1763228381793,0.04776,96138.0,96137.0,0.04468601]
[1763228383481,0.002,96138.0,96137.0,0.04468601]
[1763228384285,0.02457,96138.0,96137.0,0.04468601]
[1763228384991,0.04776,96138.0,96137.0,0.04468601]
[1763228386083,0.04776,96138.0,96137.0,0.08214308]
[1763228386883,0.04576,96131.0,96130.0,0.03745707]
[1763228387084,0.04576,96131.0,96108.0,0.01399]
[1763228387085,0.00219803,96130.0,96120.0,0.16247796]
[1763228387388,0.02476803,96130.0,96129.0,0.04215]
[1763228387581,0.04795803,96130.0,96129.0,0.04215]
[1763228388990,0.04576,96125.0,96124.0,0.04215]
[1763228389186,0.04576,96125.0,96124.0,0.02102]
[1763228389493,0.04576,96121.0,96120.0,0.08212766]
[1763228389684,0.04576,96121.0,96120.0,0.00088868]
[1763228390588,0.04576,96121.0,96120.0,0.02190868]
[1763228391290,0.04576,96121.0,96120.0,0.04303868]
[1763228392495,0.04576,96121.0,96120.0,0.00015601]
[1763228392795,0.40656,96121.0,96120.0,0.00015601]
[1763228396292,0.40656,96121.0,96120.0,0.02190868]
[1763228397505,0.40656,96121.0,96120.0,0.04303868]
[1763228400012,0.40656,96121.0,96120.0,0.00088868]
[1763228401408,0.04302,96105.0,96103.0,0.03745707]
[1763228401707,0.04302,96101.0,96100.0,0.08123898]
[1763228401905,0.04302,96101.0,96100.0,0.00073267]
[1763228402210,0.04302,96101.0,96100.0,0.02210267]
[1763228402508,0.04302,96101.0,96100.0,0.04406267]
[1763228406804,0.36095601,96110.0,96109.0,0.04333]
[1763228407009,0.38213601,96110.0,96109.0,0.04333]
[1763228407210,0.38433404,96110.0,96109.0,0.04333]
[1763228407410,0.36315404,96110.0,96109.0,0.04333]
[1763228407608,0.00015601,96110.0,96109.0,0.04333]
[1763228408610,0.41424,96131.0,96130.0,0.04333]
[1763228408912,0.40382,96131.0,96130.0,0.04406267]
[1763228410810,0.40482,96131.0,96130.0,0.04406267]
[1763228416818,0.001,96131.0,96130.0,0.04406267]
[1763228418527,0.02388,96131.0,96130.0,0.04406267]
[1763228419519,0.001,96131.0,96130.0,0.04406267]
[1763228420119,0.02388,96131.0,96130.0,0.04406267]
[1763228421016,0.0454,96131.0,96130.0,0.04406267]
[1763228421418,0.02388,96131.0,96130.0,0.04406267]
[1763228422028,0.001,96131.0,96130.0,0.04406267]
[1763228423026,0.02388,96131.0,96130.0,0.04406267]
[1763228424315,0.001,96131.0,96130.0,0.04406267]
[1763228435026,0.001,96131.0,96130.0,0.05750267]
[1763228437231,0.001,96131.0,96130.0,0.11375716]
[1763228437419,0.00015568,96140.0,96139.0,0.04509]
[1763228437623,0.00015568,96140.0,96139.0,0.40589]
[1763228438224,0.00015568,96140.0,96139.0,0.44330778]
[1763228438637,0.00215568,96140.0,96139.0,0.44330778]
[1763228439134,0.00215568,96140.0,96139.0,0.40589]
[1763228439934,0.04975371,96140.0,96139.0,0.40589]
[1763228440131,0.04975371,96140.0,96139.0,0.44331378]
[1763228441039,0.04975371,96140.0,96139.0,0.40589]
[1763228444135,0.04875371,96140.0,96139.0,0.40589]
[1763228444725,0.04875371,96140.0,96130.0,0.17591796]
[1763228444726,0.01281,96135.0,96132.0,0.04509]
[1763228444927,0.0454,96133.0,96132.0,0.04509]
[1763228447230,0.04555568,96140.0,96139.0,0.04509]
[1763228447538,0.04775371,96140.0,96139.0,0.40589]
[1763228447837,0.04775371,96140.0,96139.0,0.04509]
[1763228449528,0.04775371,96140.0,96139.0,0.08254658]
[1763228449931,0.04775371,96140.0,96139.0,0.04509]
[1763228450134,0.04775371,96140.0,96139.0,0.08254649]
[1763228450434,0.04775371,96140.0,96139.0,0.04509]
[1763228451537,0.02522371,96140.0,96139.0,0.04509]
[1763228451747,0.04775371,96140.0,96139.0,0.04509]
[1763228452442,0.0454,96134.0,96132.0,0.05625449]
[1763228452638,0.01281,96138.0,96127.0,0.3608]
[1763228452639,0.0454,96128.0,96127.0,0.3982633]
[1763228453142,0.0454,96123.0,96122.0,0.0374633]
[1763228453344,0.0454,96122.0,96120.0,0.00073267]
[1763228456042,0.0454,96122.0,96115.0,0.0374633]
[1763228456240,0.0454,96122.0,96114.0,0.0374633]
[1763228456442,0.0454,96122.0,96112.0,0.15934109]
[1763228457249,0.0454,96122.0,96112.0,0.12187779]
[1763228457643,0.0454,96122.0,96112.0,0.15934109]
[1763228458350,0.0454,96122.0,96112.0,0.12187779]
[1763228459545,0.04542,96111.0,96110.0,0.12187779]
[1763228459753,0.04542,96101.0,96100.0,0.26651558]
[1763228460053,0.04542,96101.0,96100.0,0.04518267]
[1763228466460,0.00219803,96100.0,96093.0,0.0374633]
[1763228466662,0.00219803,96100.0,96091.0,0.00015601]
[1763228466663,0.04542,96092.0,96091.0,0.00015601]
[1763228467560,0.01281,96096.0,96080.0,0.12187779]
[1763228467561,0.04542,96087.0,96080.0,0.12187779]
[1763228467869,0.40622,96087.0,96080.0,0.24375558]
[1763228469265,0.04542,96081.0,96080.0,0.12187779]
[1763228469470,0.05725,96078.0,96077.0,0.00015609]
[1763228469872,0.05922,96072.0,96071.0,0.12187779]
[1763228470062,0.04542,96062.0,96061.0,0.40525]
[1763228470464,0.04552704,96062.0,96061.0,0.38356]
[1763228470658,0.04552704,96062.0,96061.0,0.3608]
[1763228470957,0.04542,96053.0,96052.0,0.28836167]
[1763228471263,0.04342,96053.0,96052.0,0.04460609]
[1763228471968,0.40422,96053.0,96052.0,0.02291609]
[1763228472169,0.40422,96053.0,96052.0,0.04539609]
[1763228473163,0.40422,96053.0,96052.0,0.04639609]
[1763228473568,0.40422,96053.0,96052.0,0.04739609]